{"text_format":"1","workbook":"xlsx","n_sheets":7,"sheets":["Identificação","1. ENSINO","2. PRODUÇÃO INTELECTUAL","3. PESQUISA","4. EXTENSÃO","5. GESTÃO","RESUMO"],"not_rendered":{"charts":0,"images":5,"macros":1,"external_links":0,"defined_names":12,"comments":0,"pivot_tables":0},"unopened":[],"bounds":{"document_bytes":16777216,"sheet_cells":100000,"rows_first":2000,"rows_last":500,"rows_between":2000,"halvings":0,"cell_chars":16384,"cell_head_chars":4096},"cells_cut":0,"cells_raw":0,"read":"whole","date_system":"1900"}

{"sheet":"Identificação","index":0,"n_rows":49,"n_cols":42,"rows_kept":49,"cut":false,"hidden":false,"merged":[[4,1,4,10],[8,1,8,10],[9,1,9,10],[16,1,16,10],[10,1,10,10],[11,1,11,10],[12,1,12,10],[15,1,15,10],[13,1,13,10],[14,1,14,10],[48,1,48,2],[48,3,48,10],[49,1,49,10],[33,9,33,10],[33,4,33,6],[34,4,34,5],[34,7,34,8],[35,1,35,10],[46,1,46,2],[46,3,46,10],[47,1,47,2],[47,3,47,10],[45,1,45,10],[42,1,42,2],[43,1,43,2],[38,1,38,2],[0,1,0,10],[29,2,29,6],[29,7,29,8],[30,2,30,6],[30,7,30,8],[25,1,25,10],[22,1,22,10],[24,1,24,10],[2,1,2,10],[28,1,28,10],[29,9,29,10],[30,9,30,10],[3,1,3,10],[6,1,6,10],[5,1,5,10],[7,1,7,10],[31,2,31,3],[31,9,31,10],[17,1,17,10],[21,1,21,10],[37,1,37,10],[32,9,32,10],[18,1,18,10],[23,1,23,10],[20,1,20,10],[19,1,19,10],[33,1,33,2],[34,1,34,3],[31,7,31,8],[32,2,32,6],[32,7,32,8],[36,1,36,10],[39,1,39,2],[40,1,40,2],[44,1,44,2],[38,3,38,10],[39,3,39,10],[40,3,40,10],[41,1,41,10],[42,3,42,10],[43,3,43,10],[44,3,44,10]]}
[null,"\n\n\nUNIVERSIDADE FEDERAL DE ALAGOAS – UFAL\nSECRETARIA EXECUTIVA DOS CONSELHOS SUPERIORES - SECS"]
[]
[null,"PLANO DE ATIVIDADES ACADÊMICAS - PAA"]
[null," (RCO nº 119/2025 - CONSUNI/UFAL)"]
[]
[null,"ATENÇÃO! "]
[null,"Ao baixar este arquivo você deve ter percebido uma mensagem inicial informando: "]
[null,"Clique no botão                                      para poder preencher os campos editáveis da planilha. Surge outra mensagem informando:"]
[null,"O arquivo é confiável! Esse bloqueio é automático visando a proteção por envio via internet de macros indesejáveis que possam introduzir virus em seu computador. Para desbloquear as macros contidas neste arquivo anote as instruções a seguir pois terá que fechar o arquivo para fazer o desbloqueio das macros. Seguem as instruções... "]
[null,"1. Feche este arquivo. Ele deve ter sido baixado na pasta \"Download\" do seu computador."]
[null,"2. Abra a pasta onde está o arquivo \"Modelo Formulário PAA (RCO 119-2025).xlsm\". Provavelmente na pasta \"Download\"..."]
[null,"3. Clique com o botão direito do mouse no arquivo \"Modelo Formulário PAA (RCO 119-2025).xlsm\". "]
[null,"4. Selecione \"Propriedades\" na cortina que surgiu."]
[null,"5. Na parte inferior, no último item, marque \"Desbloquear\"... "]
[]
[null,"6. Pronto! Seu arquivo está pronto para o preenchimento. Se quiser, pode salvar em outra pasta (diretório) onde deseje armazenar seu formulário de PAA. Na última planilha, denominada \"Resumo\", você encontrará as instruções para impressão."]
[]
[null,"INSTRUÇÕES GERAIS PARA PREENCHIMENTO DO PLANO DE ATIVIDADES ACADÊMICAS"]
[null,"   1. Este formulário de Plano de Atividades Acadêmicas (PAA) deve ser utilizado por todos os docentes, independentemente da Classe em que se encontre: Classe A (Professor/a Assistente), Classe B (Professor/a Adjunto/a), Classe C (Professor/a Associado/a) ou mesmo na Classe D (Professor/a Titular).  O Plano servirá de base para as avaliações de desempenho dos docentes, mas também para o gerenciamento e acompanhamento das atividades a serem desenvolvidas nas UAs e Campi;"]
[null,"   2. O PAA é anual e deve ser preenchido pelo docente interessado usando, exclusivamente, o Excel. O uso de outros programas ocasionará erros;"]
[null,"   3. Só estão disponíveis para preenchimento os campos editáveis. Alguns são preenchidos automaticamente, evitando-se possíveis erros. Alterne sequencialmente pelos campos subsequentes usando a tecla \"Tab\", ou pelos campos anteriores usando simultaneamente as teclas \"Shift\" + \"Tab\". Para alternar para qualquer planilha, clique no nome da planilha que está na parte inferior desta planilha, tais sejam: 1. ENSINO; 2. PRODUÇÃO INTELECTUAL; 3. PESQUISA; 4. EXTENSÃO; 5. GESTÃO; ou RESUMO;"]
[null,"   4.  Inicie o preenchimento indicando, nos campos abaixo dessas instruções, os dados de identificação do docente (nome; SIAPE; titulação; regime de trabalho; lotação; início de exercício; posicionamento na carreira; etc.) e, na sequência, os afastamentos previstos para o período ou que já estejam em curso. Segue o preenchimento das atividades acadêmicas a serem desenvolvidas pelo docente nas demais planilhas deste arquivo (pasta de trabalho);"]
[null,"   5. O Docente deve definir o período do PAA em função, a princípio, da data de início do exercício na UFAL, considerada como data base dos interstícios para fins de progressão ou promoção docente. Portanto, deve-se considerar, para cada Plano, sucessivos períodos de 1 ano a partir da data base.  Só será necessário definir a data de início do período. Será sempre considerado um período de 1 ano para cada PAA;"]
[null,"   6. Após o devido preenchimento, o docente deve encaminhar o PAA à Secretaria da sua Unidade Acadêmica/Campus até o 30º (trigésimo) dia antes de iniciado o semestre letivo correspondente, para aprovação pelo Conselho da  Unidade/Campus;"]
[null,"   7. No caso de alteração ou acréscimo de atividades no PAA referentes a algum semestre letivo planejado, o docente deve refazer seu Plano e enviar o novo PAA à Unidade Acadêmica/Campus, até o 30º (trigésimo) dia após iniciado o semestre letivo correspondente, para aprovação pelo Conselho da  Unidade/Campus, em substituição ao Plano original."]
[]
[]
[null,null,null,null,null,null,null,null,null,null,null,null,null,null,null,null,null,null,null,null,null,null,null,null,null,null,null,null,null,null,null,null,null,null,null,"Titulação",null,"Regime de trabalho",null,"Classe",null,"Nível"]
[null,"IDENTIFICAÇÃO DO DOCENTE"]
[null,"Nome:",null,null,null,null,null,"Matrícula SIAPE:",null,null,null,null,null,null,null,null,null,null,null,null,null,null,null,null,null,null,null,null,null,null,null,null,null,null,null," Doutorado",null,"20 h",null,"Classe A",null,1]
[null,"E-mail:",null,null,null,null,null,"Telefone/Celular:",null,null,null,null,null,null,null,null,null,null,null,null,null,null,null,null,null,null,null,null,null,null,null,null,null,null,null," Mestrado",null,"40 h",null,"Classe B",null,2]
[null,"Titulação atual:",null,null,null,null,null,"Regime de trabalho:",null,null,null,null,null,null,null,null,null,null,null,null,null,null,null,null,null,null,null,null,null,null,null,null,null,null,null,"  Especialização",null,"DE",null,"Classe C",null,3]
[null,"Lotação:",null,null,null,null,null,"Entrada em exercício:",null,null,null,null,null,null,null,null,null,null,null,null,null,null,null,null,null,null,null,null,null,null,null,null,null,null,null," Graduação",null,null,null,"Classe D",null,4]
[null,"Classe e nível atual:  ",null,null,{"$f":"_xlfn.IFS(D34=\"\",\"\",D34=\"Classe A\",\"Professor(a) Assistente\",D34=\"Classe B\",\"Professor(a) Adjunto(a)\",D34=\"Classe C\",\"Professor(a) Associado(a)\",D34=\"Classe D\",\"Professor(a) Titular\")","v":""},null,null,"Nível:  ",null,{"$f":"IF(I34=\"\",\"\",IF(AND(D34=AN30,I34=1),\"\",IF(AND(D34=AN33,I34=1),\"\",IF(OR(D34=AN31,D34=AN32),\"\",\"Nível errado!\"))))","v":""}]
[null,"Período a que se refere este PAA: ",null,null,null,null,"a",{"$f":"IF(E35=\"\",\"\",EDATE(E35,12)-1)","v":""}]
[]
[]
[null,"AFASTAMENTOS PREVISTOS OU EM CURSO"]
[null,"Natureza:"]
[null,"Período:"]
[null,"Portaria (se houver):"]
[]
[null,"Natureza:"]
[null,"Período:"]
[null,"Portaria (se houver):"]
[]
[null,"Natureza:"]
[null,"Período:"]
[null,"Portaria (se houver):"]

{"sheet":"1. ENSINO","index":1,"n_rows":110,"n_cols":24,"rows_kept":110,"cut":false,"hidden":false,"merged":[[65,1,65,7],[89,1,89,4],[90,1,90,4],[43,1,43,8],[44,2,44,5],[44,6,45,6],[44,7,45,7],[44,8,45,8],[44,1,45,1],[72,8,73,8],[70,1,70,8],[71,1,71,8],[78,1,78,8],[109,1,109,5],[74,1,74,4],[85,2,85,4],[69,1,69,7],[66,1,66,7],[109,6,109,7],[107,6,107,7],[106,1,106,5],[107,1,107,5],[108,1,108,5],[108,6,108,7],[68,1,68,8],[104,1,104,8],[72,5,73,5],[72,6,73,6],[72,7,73,7],[14,9,14,10],[4,1,4,8],[5,1,5,8],[6,1,6,8],[106,6,106,7],[7,1,7,8],[9,1,9,8],[10,1,10,8],[11,1,11,8],[13,1,13,8],[12,1,12,8],[67,1,67,7],[22,1,22,8],[23,1,23,8],[24,1,24,8],[25,1,26,1],[101,1,101,4],[102,1,102,4],[103,1,103,4],[96,1,96,4],[97,1,97,4],[98,2,98,4],[100,1,100,4],[91,1,91,4],[92,1,92,8],[75,1,75,4],[76,1,76,4],[77,2,77,4],[79,1,79,4],[86,1,86,8],[87,1,87,4],[88,1,88,4],[0,1,2,8],[3,1,3,8],[64,1,64,8],[61,1,61,8],[62,1,62,7],[63,1,63,7],[25,2,25,5],[25,6,26,6],[17,1,17,8],[19,1,19,8],[14,1,14,8],[16,1,16,8],[18,1,18,8],[25,7,26,7],[25,8,26,8],[42,1,42,8],[20,1,20,8],[21,1,21,8],[105,1,105,8],[110,1,110,8],[8,1,8,8],[99,1,99,8],[80,1,80,4],[81,1,81,4],[82,1,82,4],[83,1,83,4],[84,1,84,4],[93,1,93,4],[94,1,94,4],[95,1,95,4],[72,1,72,4],[73,1,73,4]]}
[null,"UNIVERSIDADE FEDERAL DE ALAGOAS – UFAL\nSECRETARIA EXECUTIVA DOS CONSELHOS SUPERIORES - SECS"]
[]
[]
[]
[null,"INSTRUÇÕES PARA PREENCHIMENTO DAS ATIVIDADES DE ENSINO"]
[null,"1º. No item 1.1, logo após essas instruções, registre as informações referentes às atividades de ministração de aulas na graduação (item 1.1.1) ou na pós-graduação (item 1.1.2), conforme a seguir: "]
[null,"     a) Ano-Período no formato AAAA-P (ano com 4 dígitos e período com 1 dígito, separados por um hífen (Ex.: 2026-1). Período P=1 ou 2, para 1º ou 2º semestre, respectivamente (Períodos de férias são indicados como sendo do período anterior). Cuidado com esta informação! Ela será usada para o cálculo da carga horária efetiva semanal média do docente."]
[null,"     b) Informe, nos campos correspondentes, código, nome, turma e a carga horária total de cada componente curricular (disciplina ou módulo) que irá lecionar em cada período letivo contido no ciclo avaliativo em questão, tanto na graduação como na pós-graduação. "]
[null,"     c) Caso a disciplina/módulo seja compartilhada com outro ou outros docentes, informe a carga horária que lhe será atribuída na coluna \"CH efetiva do docente\". "]
[null,"     d) Caso o componente curricular tenha carga horária total diferente daquela definida para o docente (Estágio Supervisionado Obrigatório, por exemplo), informe, na coluna \"CH efetiva do docente\", a carga horária que compete ao docente conforme definido no PPC do Curso de graduação ou no Regimento do Curso de pós-graduação."]
[null,"     e) Na coluna \"Duração da aula (minutos)\" informe o valor 50 para componente curricular tipo Disciplina ou 50 ou 60, para a atividade didática de outros tipos de componentes curriculares, conforme a duração em minutos definida para esses componentes, em conformidade com as resoluções RCO nº 114/2023-CONSUNI/UFAL (Regulamento da Graduação), RCO nº 82/2025-CONSUNI/UFAL (Regulamento da Pós-Graduação Lato sensu), ou RCO nº 37/2022-CONSUNI/UFAL (Regulamento da Pós-Graduação stricto sensu)."]
[null,"     f) O campo \"CH equivalente semanal\" é calculado automaticamente pela planilha eletrônica. "]
[]
[null,"2º. Os campos \" Carga horária efetiva semanal média - CHESM do docente prevista para o período\" e \"Pontuação total prevista correspondente à atividade de ministração de aulas no período\" também são calculados automaticamente, sendo este último campo calculado em conformidade com o barema ou Tabela de Pontuação anexa à RCO nº 119/2025-CONSUNI/UFAL."]
[null,"3º. No item 1.1.3 o docente deve informar a carga horária semanal que irá disponibilizar para  preparação de aulas, correção de atividades avaliativas, etc., como também para atendimento a alunos fora do horário das disciplinas. Salienta-se que a UFAL destina uma semana no início de cada período letivo para as atividades de planejamento das disciplinas. Considerando 40 horas de atividades de planejamento para todo o semestre letivo, tem-se 40/18 horas semanais relativas ao planejamento distribuídas ao longo do semestre, limitando o item referente ao planejamento das disciplinas a 2,22 h. Sugere-se um valor igual a 2 h semanais para as atividades  de planejamento e também para atendimento a alunos fora do horário das disciplinas. Esses valores podem ser alterados pelo docente."]
[]
[null,"4º. Para as atividades de \"Orientações de alunos\", \"Participações em bancas\" e \"Atividades de formação continuada\", o docente deve informar a quantidade e a carga horária semanal previstas para cada item. A planilha executará automaticamente os cálculos correspondentes para obtenção dos totais."]
[null,"5º. Salienta-se que a carga horária semanal total , calculada pela soma das cargas horárias semanais a serem dedicadas às diversas atividades previstas pelo docente não só para ensino, mas também para produção intelectual, pesquisa, extensão e/ou gestão e representação, deve totalizar a mesma carga horária dfinida pelo Regime de Trabalho do docente (20 horas; 40 horas ou DE). "]
[]
[null,"         A última planilha, denominada \"RESUMO\", apresenta os totais das pontuações previstas para o período avaliativo bem como a carga horária semanal total do docente, permitindo que sejam efetuados os devidos ajustes nas planilhas anteriores para que a carga horária semanal total corresponda exatamente ao Regime de Trabalho do docente. O QUADRO-RESUMO desta planilha não é editável! Ele resume todas as informações definidas pelo docente nas planilhas anteriores. A planilha é utilizada também para as assinaturas do docente e da Presidência do Conselho da UA/Campus, quando da aprovação do PAA.",null,null,null,null,null,null,null,null,null,null,null,null,null,null,null,null,null,null,null,null,{"$f":"IF(B28=\"\",\"\",VALUE(LEFT(B28,4)&\",\"&RIGHT(B28,1)))","v":""},{"$f":"IF(SUM(W20:W53)=0,\"\",COUNTA(_xlfn.UNIQUE(_xlfn._xlws.FILTER(W20:W53,W20:W53<>\"\"))))","v":""}]
[null,null,null,null,null,null,null,null,null,null,null,null,null,null,null,null,null,null,null,null,null,null,{"$f":"IF(B29=\"\",\"\",VALUE(LEFT(B29,4)&\",\"&RIGHT(B29,1)))","v":""}]
[null,null,null,null,null,null,null,null,null,null,null,null,null,null,null,null,null,null,null,null,null,null,""]
[null,"1. ATIVIDADES DE ENSINO",null,null,null,null,null,null,null,null,null,null,null,null,null,null,null,null,null,null,null,null,""]
[null,"1.1 Ministração de aulas em componentes curriculares",null,null,null,null,null,null,null,null,null,null,null,null,null,null,null,null,null,null,null,null,""]
[null,"1.1.1 Graduação ",null,null,null,null,null,null,null,null,null,null,null,null,null,null,null,null,null,null,null,null,""]
[null,"Ano-Período","Componente curricular (Disciplinas ou módulos)",null,null,null,"CH efetiva do docente","Duração da aula (minutos)","CH equivalente Semanal",null,null,null,null,null,null,null,null,null,null,null,null,null,""]
[null,null,"Código","Nome","Turma","CH total",null,null,null,null,null,null,null,null,null,null,null,null,null,null,null,null,""]
[null,null,null,null,null,null,null,null,{"$f":"IF(H28=\"\",\"\",G28*H28/50/18)","v":""},null,null,null,null,null,null,null,null,null,null,null,null,null,""]
[null,null,null,null,null,null,null,null,{"$f":"IF(H29=\"\",\"\",G29*H29/50/18)","v":""},null,null,null,null,null,null,null,null,null,null,null,null,null,""]
[null,null,null,null,null,null,null,null,"",null,null,null,null,null,null,null,null,null,null,null,null,null,""]
[null,null,null,null,null,null,null,null,"",null,null,null,null,null,null,null,null,null,null,null,null,null,""]
[null,null,null,null,null,null,null,null,{"$f":"IF(H32=\"\",\"\",G32*H32/50/18)","v":""},null,null,null,null,null,null,null,null,null,null,null,null,null,""]
[null,null,null,null,null,null,null,null,"",null,null,null,null,null,null,null,null,null,null,null,null,null,""]
[null,null,null,null,null,null,null,null,"",null,null,null,null,null,null,null,null,null,null,null,null,null,""]
[null,null,null,null,null,null,null,null,""]
[]
[]
[]
[null,null,null,null,null,null,null,null,"",null,null,null,null,null,null,null,null,null,null,null,null,null,{"$f":"IF(B47=\"\",\"\",VALUE(LEFT(B47,4)&\",\"&RIGHT(B47,1)))","v":""}]
[null,null,null,null,null,null,null,null,"",null,null,null,null,null,null,null,null,null,null,null,null,null,""]
[null,null,null,null,null,null,null,null,"",null,null,null,null,null,null,null,null,null,null,null,null,null,""]
[null,null,null,null,null,null,null,null,{"$f":"IF(H42=\"\",\"\",G42*H42/50/18)","v":""},null,null,null,null,null,null,null,null,null,null,null,null,null,""]
[]
[null,"1.1.2 Pós-Graduação "]
[null,"Ano-Período","Componente curricular",null,null,null,"CH efetiva do docente","Duração da aula (minutos)","CH equivalente Semanal"]
[null,null,"Código","Nome","Turma","CH total"]
[null,null,null,null,null,null,null,null,{"$f":"IF(H47=\"\",\"\",G47*H47/50/18)","v":""}]
[null,null,null,null,null,null,null,null,"",null,null,null,null,null,null,null,null,null,null,null,null,null,""]
[null,null,null,null,null,null,null,null,"",null,null,null,null,null,null,null,null,null,null,null,null,null,""]
[null,null,null,null,null,null,null,null,"",null,null,null,null,null,null,null,null,null,null,null,null,null,""]
[null,null,null,null,null,null,null,null,"",null,null,null,null,null,null,null,null,null,null,null,null,null,""]
[null,null,null,null,null,null,null,null,"",null,null,null,null,null,null,null,null,null,null,null,null,null,""]
[null,null,null,null,null,null,null,null,"",null,null,null,null,null,null,null,null,null,null,null,null,null,""]
[null,null,null,null,null,null,null,null,""]
[null,null,null,null,null,null,null,null,""]
[null,null,null,null,null,null,null,null,""]
[null,null,null,null,null,null,null,null,""]
[null,null,null,null,null,null,null,null,""]
[null,null,null,null,null,null,null,null,""]
[null,null,null,null,null,null,null,null,""]
[null,null,null,null,null,null,null,null,""]
[]
[null," Carga horária efetiva semanal média - CHESM do docente prevista para o período:",null,null,null,null,null,null,{"$f":"IF(X20=\"\",\"\",1/X20*SUM(I28:I42,I47:I61))","v":""}]
[null,"Pontuação total prevista correspondente à atividade de ministração de aulas no período:",null,null,null,null,null,null,{"$f":"IF(I63=\"\",\"\",IF(Identificação!J32=\"   20 horas\",I63*0.8,I63*0.6))","v":""}]
[]
[null,"1.1 3 Atividades complementares de ensino",null,null,null,null,null,null,"CH semanal do docente"]
[null,"     a)      Preparação de aulas, correção de atividades avaliativas, etc.",null,null,null,null,null,null,2]
[null,"     b)      Atendimento a alunos fora do horário das disciplinas",null,null,null,null,null,null,2]
[]
[null," Carga horária efetiva semanal total do docente em atividade didática prevista para o interstício:",null,null,null,null,null,null,{"$f":"IF(I63=\"\",\"\",SUM(I63,I67:I68))","v":""}]
[]
[null,"1.2 Orientações e outras atividades de ensino"]
[null,"Descrição da atividade",null,null,null,"Pontuação (RCO nº 119/2025)","Quantidade prevista","Pontuação prevista","CH semanal do docente"]
[null,"1. Orientações de alunos de graduação"]
[null,"a)      TCC",null,null,null,2,null,{"$f":"IF(G75=\"\",\"\",F75*G75)","v":""}]
[null,"b)      Monitoria",null,null,null,2,null,{"$f":"IF(G76=\"\",\"\",F76*G76)","v":""}]
[null,"c)      Estágio curricular (inclusive docência, residência, etc.)",null,null,null,2,null,""]
[null," Outra:",null,null,null,null,null,{"$f":"IF(G78=\"\",\"\",F78*G78)","v":""}]
[]
[null,"2. Orientação de alunos de pós-graduação",null,null,null,"Pontuação (RCO nº 119/2025)","Quantidade prevista","Pontuação prevista","CH semanal do docente"]
[null,"a)      Monografia de especialização",null,null,null,2.4,null,{"$f":"IF(G81=\"\",\"\",F81*G81)","v":""}]
[null,"b)      Dissertação",null,null,null,4,null,{"$f":"IF(G82=\"\",\"\",F82*G82)","v":""}]
[null,"c)      Tese",null,null,null,8,null,""]
[null,"d)      Estágio docência",null,null,null,2,null,""]
[null,"e)      Estágio pós-doutoral",null,null,null,8,null,""]
[null,"Outra:",null,null,null,null,null,{"$f":"IF(G86=\"\",\"\",F86*G86)","v":""}]
[]
[null,"3. Co-orientação de alunos de graduação ou de pós-graduação",null,null,null,"Pontuação (RCO nº 119/2025)","Quantidade prevista","Pontuação prevista","CH semanal do docente"]
[null,"a)      TCC",null,null,null,1.2,null,{"$f":"IF(G89=\"\",\"\",F89*G89)","v":""}]
[null,"b)      Monografia de especialização",null,null,null,1.5,null,{"$f":"IF(G90=\"\",\"\",F90*G90)","v":""}]
[null,"c)      Dissertação",null,null,null,2.4,null,{"$f":"IF(G91=\"\",\"\",F91*G91)","v":""}]
[null,"d)      Tese",null,null,null,4.8,null,""]
[]
[null,"4. Participação em banca",null,null,null,"Pontuação (RCO nº 119/2025)","Quantidade prevista","Pontuação prevista","CH semanal do docente"]
[null,"a)      de trabalhos de conclusão ou seleção em cursos de graduação/ PET/ PIBIC/ PIBID/extensão",null,null,null,0.5,null,{"$f":"IF(G95=\"\",\"\",F95*G95)","v":""}]
[null,"b)      de seleção em curso lato sensu, residências pedagógicas ou em saúde",null,null,null,0.7,null,""]
[null,"c)      de qualificação ou defesa de Mestrado",null,null,null,1,null,""]
[null,"d)      de qualificação ou defesa de Doutorado",null,null,null,2,null,""]
[null,"Outra:",null,null,null,null,null,{"$f":"IF(G99=\"\",\"\",F99*G99)","v":""}]
[]
[null,"5. Atividades de formação continuada (Participação em ações formativas do Proford ou programas afins",null,null,null,"Pontuação (RCO nº 119/2025)","Quantidade prevista","Pontuação prevista","CH semanal do docente"]
[null,"a) como cursista",null,null,null,3,null,{"$f":"IF(G102=\"\",\"\",F102*G102)","v":""}]
[null,"b) como formador",null,null,null,1,null,""]
[null,"c) como tutor",null,null,null,1,null,{"$f":"IF(G104=\"\",\"\",F104*G104)","v":""}]
[]
[]
[null,"RESUMO DAS ATIVIDADES DE ENSINO",null,null,null,null,"Carga Horária   Semanal Prevista",null,"Pontuação Prevista"]
[null,"1.1 Ministração de aulas na graduação e na pós-graduação, inclusive planejamento e atendimento a alunosfora do horário das disciplinas",null,null,null,null,{"$f":"IF(I70=\"\",\"\",I70)","v":""},null,{"$f":"I64","v":""}]
[null,"1.2 Orientações e outras atividades de ensino",null,null,null,null,{"$f":"IF(SUM(I75:I104)=0,\"\",SUM(I75:I104))","v":""},null,{"$f":"IF(SUM(H75:H104)=0,\"\",SUM(H75:H104))","v":""}]
[null,"TOTAIS: ",null,null,null,null,{"$f":"IF(SUM(G108:H109)=0,\"\",SUM(G108:H109))","v":""},null,{"$f":"IF(SUM(I108:I109)=0,\"\",SUM(I108:I109))","v":""}]

{"sheet":"2. PRODUÇÃO INTELECTUAL","index":2,"n_rows":33,"n_cols":5,"rows_kept":33,"cut":false,"hidden":false,"merged":[[33,0,33,4],[31,0,31,4],[32,0,32,4],[0,0,0,4],[21,0,21,4],[27,0,27,4],[28,0,28,2],[30,0,30,4],[29,0,29,4]]}
["2. PRODUÇÃO INTELECTUAL"]
["Tipo de produção","Pontuação (RCO nº 119/2025)","Quantidade prevista","Pontuação prevista","CH semanal do docente"]
["1.    Livro com ISBN e corpo editorial na área de atuação do docente e Unidade Acadêmica ou em outras editoras de qualidade validada pela Unidade Acadêmica e comissão de progressão/promoção",8,null,{"$f":"IF(C3=\"\",\"\",B3*C3)","v":""}]
["2.    Capítulo de livro (até dois) com ISBN e corpo editorial na área de atuação do docente e Unidade Acadêmica ou em outras editoras de qualidade validada pela Unidade e comissão de progressão/promoção",2,null,{"$f":"IF(C4=\"\",\"\",B4*C4)","v":""}]
["3.    Edição ou organização de livros",4,null,""]
["4.    Tradução de livros relacionadas com a atividade acadêmica exercida pelo Docente",4,null,""]
["5.    Tradução de capítulos de livro relacionada com a atividade acadêmica exercida pelo Docente",1.3,null,""]
["6.    Prefácio ou apresentação de livros",1.3,null,""]
["7.    Artigo em periódicos indexados (com ISSN)",6,null,""]
["8.    Artigo completo em anais de congressos, simpósios, seminários e similares com comissão editorial",4,null,""]
["9.    Artigo de divulgação científica, tecnológica ou artística",3,null,""]
["10.  Resumo em anais de congressos, simpósios, seminários, encontros, semanas e similares",1.5,null,""]
["11.  Produção técnica registrada na UFAL",2,null,""]
["12.  Publicações técnicas editadas por instituições oficiais de ensino, pesquisa e extensão",2,null,""]
["13.  Entrevista acadêmica/científica",4.8,null,""]
["14.  Criação, direção e divulgação de obras artísticas",6,null,""]
["15.  Confecção ou desenvolvimento de produtos/técnicas",6,null,""]
["16.  Confecção ou desenvolvimento de material didático instrucional, exceto notas de aula",6,null,{"$f":"IF(C18=\"\",\"\",B18*C18)","v":""}]
["17.  Patente",3,null,""]
["18.  Prêmios",2,null,""]
["19.  Títulos",1,null,""]
["Outras produções:"]
[null,0.5,null,{"$f":"IF(C23=\"\",\"\",B23*C23)","v":""}]
[null,0.5,null,""]
[null,0.5,null,""]
[null,0.5,null,""]
[null,0.5,null,""]
[]
["PONTUAÇÃO TOTAL PREVISTA E CH SEMANAL DO DOCENTE EM ATIVIDADES DE PRODUÇÃO INTELECTUAL:",null,null,{"$f":"IF(SUM(D3:D27)=0,\"\",SUM(D3:D27))","v":""},""]
[]
["INSTRUÇÕES PARA PREENCHIMENTO DAS ATIVIDADES DE PRODUÇÃO INTELECTUAL"]
["Obs.: Defina, para cada item, a quantidade prevista e a carga horária semanal que pretende dedicar para execução da atividade. "]
["            Caso pretenda realizar alguma atividade de produção intelectual que não esteja relacionada, acrescente nas linhas referentes a \"Outras produções\", salientando-se que esta(s) atividade(s) não constantes da relação deverão ser devidamente aprovadas pela Comissão Interna e homologada(s) pelo Conselho da Unidade/Campus."]

{"sheet":"3. PESQUISA","index":3,"n_rows":31,"n_cols":5,"rows_kept":31,"cut":false,"hidden":false,"merged":[[31,0,31,4],[29,0,29,4],[30,0,30,4],[0,0,0,4],[25,0,25,4],[26,0,26,2],[19,0,19,4],[28,0,28,4],[27,0,27,4]]}
["3. ATIVIDADES DE PESQUISA"]
["Atividade","Pontuação (RCO nº 119/2025)","Quantidade prevista","Pontuação prevista","CH semanal do docente"]
["1. Coordenação de programa de pesquisa ou desenvolvimento tecnológico",6,null,{"$f":"IF(C3=\"\",\"\",B3*C3)","v":""}]
["2. Coordenação de projeto de pesquisa ou desenvolvimento tecnológico",5,null,{"$f":"IF(C4=\"\",\"\",B4*C4)","v":""}]
["3. Participação em programa/projeto de pesquisa ou desenvolvimento tecnológico",5,null,{"$f":"IF(C5=\"\",\"\",B5*C5)","v":""}]
["4. Coordenação ou participação em Grupo de Pesquisa",2,null,""]
["5. Participação em eventos científicos, profissionais ou artísticos com apresentação de trabalhos ",2,null,""]
["6. Participação em eventos científicos, profissionais ou artísticos como conferencista, palestrante, debatedor ou mediador",2,null,""]
["7. Coordenação de eventos científicos, profissionais, artísticos ou culturais",3.5,null,""]
["8. Participação em eventos científicos, profissionais, artísticos ou culturais e mesas redondas",2.5,null,""]
["9. Organização de eventos científicos, profissionais, artísticos, culturais e mesas redondas",1.8,null,""]
["10. Coordenação individual de ciclo de palestras ou de estudos e de oficinas",2,null,""]
["11. Coordenação coletiva de ciclo de palestras ou de estudos e de oficinas",1,null,""]
["12. Prestação de serviços e assistência técnica, não remunerados",1.5,null,""]
["13. Editoração de artigos em periódicos ou revistas (Qualis A ou similar)",4,null,""]
["14. Editoração de artigos em periódicos ou revistas (Qualis B ou similar)",2]
["15. Avaliação de artigos em periódicos ou revistas (Qualis A ou similar)",2,null,""]
["16. Avaliação de artigos em periódicos ou revistas (Qualis B ou similar)",1,null,""]
["17. Avaliação de resumos para eventos nacionais ou locais",1,null,""]
[" Outras atividades de pesquisa:"]
[null,0.5,null,""]
[null,0.5,null,""]
[null,0.5]
[null,0.5,null,""]
[null,0.5,null,""]
[]
["PONTUAÇÃO TOTAL PREVISTA E CH SEMANAL DO DOCENTE EM ATIVIDADES DE PESQUISA:",null,null,{"$f":"IF(SUM(D3:D25)=0,\"\",SUM(D3:D25))","v":""},{"$f":"IF(SUM(E3:E25)=0,\"\",SUM(E3:E25))","v":""}]
[]
["INSTRUÇÕES PARA PREENCHIMENTO DAS ATIVIDADES DE PESQUISA"]
["Obs.: Defina, para cada item a quantidade prevista e a carga horária semanal que pretende dedicar para sua execução. "]
["            Caso pretenda realizar alguma atividade de pesquisa que não esteja relacionada, acrescente nas linhas referentes a \"Outras atividades de pesquisa\", salientando-se que esta(s) atividade(s) não constantes da relação deverão ser devidamente aprovadas pela Comissão Interna e homologada(s) pelo Conselho da Unidade/Campus."]

{"sheet":"4. EXTENSÃO","index":4,"n_rows":29,"n_cols":5,"rows_kept":29,"cut":false,"hidden":false,"merged":[[0,0,0,4],[27,0,27,4],[17,0,17,4],[29,0,29,4],[28,0,28,4],[23,0,23,4],[24,0,24,2],[25,0,25,4],[26,0,26,4]]}
["4. ATIVIDADES DE EXTENSÃO"]
["Atividade","Pontuação (RCO nº 119/2025)","Quantidade prevista","Pontuação prevista","CH semanal do docente"]
["1. Coordenação de programa de extensão",6,null,{"$f":"IF(C3=\"\",\"\",B3*C3)","v":""}]
["2. Coordenação de projeto de extensão",5,null,{"$f":"IF(C4=\"\",\"\",B4*C4)","v":""}]
["3. Participação em programa/projeto de extensão",4,null,{"$f":"IF(C5=\"\",\"\",B5*C5)","v":""}]
["4. Aulas ministradas em cursos de extensão e/ou treinamento",0.05,null,""]
["5. Participação artística ou técnica na apresentação, atuação e produção de concertos, programas de rádio ou televisão",0.25,null,""]
["6. Participação em eventos científicos, profissionais ou artísticos com apresentação de trabalhos ",2,null,""]
["7. Participação em eventos científicos, profissionais ou artísticos sem apresentação de trabalhos ",0.8,null,{"$f":"IF(C9=\"\",\"\",B9*C9)","v":""}]
["8. Participação em eventos científicos, profissionais ou artísticos como conferencista, palestrante, debatedor ou mediador",2,null,""]
["9. Coordenação de eventos científicos, profissionais, artísticos ou culturais",3.5,null,""]
["10. Participação em eventos científicos, profissionais, artísticos ou culturais e mesas redondas",2.5,null,""]
["11. Organização de eventos científicos, profissionais, artísticos, culturais e mesas redondas",1.8,null,""]
["12. Coordenação individual de ciclo de palestras ou de estudos e de oficinas",2,null,""]
["13. Coordenação coletiva de ciclo de palestras ou de estudos e de oficinas",1,null,""]
["14. Prestação de serviços e assistência técnica, não remunerados",1.5,null,""]
["15. Participação em atividades de divulgação científica",1.8,null,""]
[" Outras atividades de extensão:"]
[null,0.5,null,""]
[null,0.5,null,""]
[null,0.5,null,""]
[null,0.5,null,""]
[null,0.5,null,""]
[]
["PONTUAÇÃO TOTAL PREVISTA E CH SEMANAL DO DOCENTE EM ATIVIDADES DE EXTENSÃO:  .",null,null,{"$f":"IF(SUM(D3:D23)=0,\"\",SUM(D3:D23))","v":""},""]
[]
["INSTRUÇÕES PARA PREENCHIMENTO DAS ATIVIDADES DE EXTENSÃO"]
["Obs.: Defina, para cada item a quantidade prevista e a carga horária semanal que pretende dedicar para sua execução. "]
["            Caso pretenda realizar alguma atividade de extensão que não esteja relacionada, acrescente nas linhas referentes a \"Outras atividades de extensão\", salientando-se que esta(s) atividade(s) não constantes da relação deverão ser devidamente aprovadas pela Comissão Interna e homologada(s) pelo Conselho da Unidade/Campus."]

{"sheet":"5. GESTÃO","index":5,"n_rows":37,"n_cols":6,"rows_kept":37,"cut":false,"hidden":false,"merged":[[0,0,0,5],[22,0,22,5],[29,0,29,3],[28,0,28,5],[32,0,32,5],[30,0,30,5],[31,0,31,5],[37,0,37,5],[36,0,36,5],[33,0,33,5],[35,0,35,5],[34,0,34,5]]}
["5. ATIVIDADES DE GESTÃO, REPRESENTAÇÃO E OUTRAS ATIVIDADES ADMINISTRATIVAS"]
["Função desempenhada","Portaria            (se houver)","Tempo (meses) durante o período","Pontuação (RCO nº 119/2025)","Pontuação prevista","CH semanal prevista"]
["1.      Titular da Reitoria e Vice-Reitoria",null,null,{"$f":"5/6","v":0.83333333333333337},{"$f":"IF(C3=\"\",\"\",C3*D3)","v":""}]
["2. Titular de Pró-Reitoria, Direção do HUPPA ou de Superintendência",null,null,{"$f":"4/6","v":0.66666666666666663},{"$f":"IF(C4=\"\",\"\",C4*D4)","v":""}]
["3. Titular de Direção de Campus Fora de Sede ou do Hospital Veterinário",null,null,{"$f":"3.5/6","v":0.58333333333333337},""]
["4. Titular de Direção de Unidade Acadêmica ou de Coordenadoria de Pró-Reitoria e outras funções “CD”",null,null,{"$f":"3/6","v":0.5},""]
["5. Titular de Vice-Diretoria de Unidade Acadêmica ou de Direção da Editora Universitária",null,null,{"$f":"2.5/6","v":0.41666666666666669},""]
["6. Coordenação de Curso de Graduação e Pós-Graduação, de Presidência da CPPD, de Gerência e outras funções “FG”",null,null,{"$f":"2.5/6","v":0.41666666666666669},""]
["7. Coordenação de Pesquisa, de Extensão ou de Monitoria de Unidade ou Campus fora de sede, vice-coordenação de cursos e de programa de Pós-Graduação e coordenação de Programas de residência",null,null,{"$f":"2/6","v":0.33333333333333331},""]
["8. Coordenação de convênios institucionais; ou de Programa de Educação Tutorial (PET) e similares",null,null,{"$f":"2.5/6","v":0.41666666666666669},""]
["9. Coordenação de estágios supervisionados de cursos de graduação",null,null,{"$f":"2/6","v":0.33333333333333331},""]
["10. Coordenação de Setores de Estudos, Laboratórios, Núcleos e Órgãos de Apoio e outras estruturas administrativas e de Comitês de Ética Institucionais.",null,null,{"$f":"2/6","v":0.33333333333333331},""]
["11. Representação em Órgãos Colegiados",null,null,{"$f":"1.5/6","v":0.25},""]
["12. Representação sindical e representação da UFAL junto a órgãos colegiados externos",null,null,{"$f":"1.5/6","v":0.25},""]
["13. Membro de diretoria de entidade nacional científica vinculada à área de atuação do docente",null,null,{"$f":"1/6","v":0.16666666666666666},""]
["14. Participação em Comissões, Comitês, Grupos de Trabalho, Conselhos Técnicos, Científicos, Culturais e Profissionais, Fóruns, como membro efetivo",null,null,{"$f":"1.2/6","v":0.19999999999999998},""]
["15. Participação em comissão de avaliação de progressão/promoção de Docente ou de estágio probatório",null,null,{"$f":"1/6","v":0.16666666666666666},""]
["16. Participação em comissões especiais de interesse institucional",null,null,{"$f":"3/6","v":0.5},""]
["17. Participação em programa de formação continuada como mentor ou coordenador",null,null,{"$f":"1/6","v":0.16666666666666666},""]
["18. Participação em banca de concurso p/ docente efetivo",null,null,{"$f":"3/6","v":0.5},""]
["19. Ídem, em banca de concurso para Docente temporário",null,null,{"$f":"1.5/6","v":0.25}]
["20. Participação em banca de seleção de tutoria/monitoria/mestrado/ doutorado",null,null,{"$f":"1/6","v":0.16666666666666666},""]
[" Outras atividades de gestão/representação:"]
[null,null,null,{"$f":"0.5/6","v":8.3333333333333329E-2},""]
[null,null,null,{"$f":"0.5/6","v":8.3333333333333329E-2}]
[null,null,null,8.3333333333333329E-2]
[null,null,null,{"$f":"0.5/6","v":8.3333333333333329E-2},""]
[null,null,null,8.3333333333333329E-2,""]
[]
["PONTUAÇÃO TOTAL PREVISTA E CH SEMANAL EM ATIVIDADES DE GESTÃO E REPRESENTAÇÃO:  .",null,null,null,{"$f":"IF(SUM(E3:E28)=0,\"\",SUM(E3:E28))","v":""},""]
[]
["INSTRUÇÕES PARA PREENCHIMENTO DAS ATIVIDADES DE GESTÃO E REPRESENTAÇÃO"]
["Obs.: 1ª. Defina, para cada item a quantidade prevista de meses dentro do período avaliativo e a carga horária semanal que pretende dedicar para a execução da atividade. "]
["            2ª. Indique o nº da Portaria (se houver) correspondente à designação da atividade de gestão/representação na coluna correspondente."]
["           3ª. A pontuação constante na coluna \"Pontuação (RCO nº 119/2025)\" corresponde à pontuação de cada atividade obtida da citada Resolução, transformada em pontos por mês."]
["           4ª. A pontuação prevista para cada item será calculada automaticamente pela planilha, através do produto do número de meses indicado na coluna \"Tempo (meses) durante o período avaliativo\", pela pontuação unitária mensal de cada atividade."]
["            5ª. Caso pretenda realizar alguma atividade de gestão/representação que não esteja relacionada, acrescente nas linhas referentes a \"Outras atividades de gestão/representação\", salientando-se que esta(s) atividade(s) não constantes da relação deverão ser devidamente aprovadas pela Comissão Interna e homologada(s) pelo Conselho da Unidade/Campus."]

{"sheet":"RESUMO","index":6,"n_rows":34,"n_cols":23,"rows_kept":34,"cut":false,"hidden":false,"merged":[[40,1,40,6],[20,2,21,6],[19,2,19,4],[14,1,14,4],[15,1,15,4],[16,1,16,4],[17,1,17,4],[34,1,34,6],[26,1,26,6],[29,1,29,6],[27,1,27,6],[28,1,28,6],[30,1,30,6],[31,1,31,6],[32,1,32,6],[33,1,33,6],[0,1,0,6],[2,1,2,6],[3,1,3,6],[4,1,4,6],[10,1,10,6],[7,2,7,6],[5,2,5,6],[6,3,6,5],[1,1,1,6],[25,2,25,6],[18,1,18,6],[11,1,11,4],[12,1,12,4],[13,1,13,4],[23,4,23,5]]}
[null,"\n\n\nUNIVERSIDADE FEDERAL DE ALAGOAS – UFAL\nSECRETARIA EXECUTIVA DOS CONSELHOS SUPERIORES - SECS"]
[]
[null,"PLANO DE ATIVIDADES ACADÊMICAS"]
[null,"(RCO nº 119/2025 - CONSUNI/UFAL)"]
[null,"IDENTIFICAÇÃO DO DOCENTE"]
[null,"Nome do docente:",{"$f":"IF(Identificação!C30=\"\",\"\",Identificação!C30)","v":""},{"$f":"IF(Identificação!#REF!=\"\",\"\",Identificação!#REF!)","v":{"$error":"#REF!"}},{"$f":"IF(Identificação!#REF!=\"\",\"\",Identificação!#REF!)","v":{"$error":"#REF!"}},{"$f":"IF(Identificação!#REF!=\"\",\"\",Identificação!#REF!)","v":{"$error":"#REF!"}},{"$f":"IF(Identificação!#REF!=\"\",\"\",Identificação!#REF!)","v":{"$error":"#REF!"}}]
[null,"Matrícula SIAPE:",{"$f":"IF(Identificação!J30=\"\",\"\",Identificação!J30)","v":""},"   Titulação atual:",null,null,{"$f":"IF(Identificação!C32=\"\",\"\",Identificação!C32)","v":""}]
[null,"             Lotação:",{"$f":"IF(Identificação!C33=\"\",\"\",Identificação!C33)","v":""},{"$f":"IF(Identificação!#REF!=\"\",\"\",Identificação!#REF!)","v":{"$error":"#REF!"}},{"$f":"IF(Identificação!#REF!=\"\",\"\",Identificação!#REF!)","v":{"$error":"#REF!"}},{"$f":"IF(Identificação!#REF!=\"\",\"\",Identificação!#REF!)","v":{"$error":"#REF!"}},{"$f":"IF(Identificação!#REF!=\"\",\"\",Identificação!#REF!)","v":{"$error":"#REF!"}}]
[null,"Regime de Trabalho::",{"$f":"IF(Identificação!J32=\"\",\"\",Identificação!J32)","v":""},"Classe e nível atual:",{"$f":"IF(Identificação!D34=\"\",\"\",Identificação!D34)","v":""},{"$f":"IF(Identificação!E34=\"\",\"\",Identificação!E34)","v":""},{"$f":"IF(Identificação!I34=\"\",\"\",\" Nível \"&Identificação!I34)","v":""}]
[null,"Início em exercício:",{"$f":"IF(Identificação!J33=\"\",\"\",Identificação!J33)","v":""},"Período do PAA:",{"$f":"IF(Identificação!E35=\"\",\"\",Identificação!E35)","v":""},"a",{"$f":"IF(Identificação!H35=\"\",\"\",Identificação!H35)","v":""}]
[null,"QUADRO RESUMO",null,null,null,null,null,null,null,null,null,null,null,null,null,null,null,null,null,"Local",null,"Ano",{"$f":"YEAR(E10)","v":{"$error":"#VALUE!"}}]
[null,"ATIVIDADE",null,null,null,"Carga Horária Semanal Prevista","Pontuação Prevista",null,null,null,null,null,null,null,null,null,null,null,null,"Maceió / AL"]
[null,"     1. ENSINO",null,null,null,{"$f":"IF('1. ENSINO'!I64=\"\",\"\",SUM('1. ENSINO'!I70,'1. ENSINO'!I75:I104))","v":""},{"$f":"IF('1. ENSINO'!I64=\"\",\"\",SUM('1. ENSINO'!I64,'1. ENSINO'!H75:H104))","v":""},null,null,null,null,null,null,null,null,null,null,null,null,"Arapiraca / AL"]
[null,"     2. PRODUÇÃO INTELECTUAL",null,null,null,{"$f":"IF(SUM('2. PRODUÇÃO INTELECTUAL'!E3:E27)=0,\"\",SUM('2. PRODUÇÃO INTELECTUAL'!E3:E27))","v":""},{"$f":"IF(SUM('2. PRODUÇÃO INTELECTUAL'!D3:D27)=0,\"\",SUM('2. PRODUÇÃO INTELECTUAL'!D3:D27))","v":""},null,null,null,null,null,null,null,null,null,null,null,null,"Delmiro Gouveia / AL"]
[null,"     3. PESQUISA",null,null,null,{"$f":"IF(SUM('3. PESQUISA'!E3:E25)=0,\"\",SUM('3. PESQUISA'!E3:E25))","v":""},{"$f":"IF(SUM('3. PESQUISA'!D3:D25)=0,\"\",SUM('3. PESQUISA'!D3:D25))","v":""},null,null,null,null,null,null,null,null,null,null,null,null,"Rio Largo / AL"]
[null,"     4. EXTENSÃO",null,null,null,{"$f":"IF(SUM('4. EXTENSÃO'!E3:E23)=0,\"\",SUM('4. EXTENSÃO'!E3:E23))","v":""},{"$f":"IF(SUM('4. EXTENSÃO'!D3:D23)=0,\"\",SUM('4. EXTENSÃO'!D3:D23))","v":""},null,null,null,null,null,null,null,null,null,null,null,null,"Penedo / AL"]
[null,"     5. GESTÃO/REPRESENTAÇÃO",null,null,null,{"$f":"IF(SUM('5. GESTÃO'!F3:F28)=0,\"\",SUM('5. GESTÃO'!F3:F28))","v":""},{"$f":"IF(SUM('5. GESTÃO'!E3:E28)=0,\"\",SUM('5. GESTÃO'!E3:E28))","v":""},null,null,null,null,null,null,null,null,null,null,null,null,"Palmeira dos Índios / AL"]
[null,"  TOTAL:  ",null,null,null,{"$f":"IF(SUM(F13:F17)=0,\"\",ROUND(SUM(F13:F17),0))","v":""},{"$f":"IF(SUM(G13:G17)=0,\"\",SUM(G13:G17))","v":""},null,null,null,null,null,null,null,null,null,null,null,null,"Santana do Ipanema / AL"]
[null,{"$f":"IF(F18=\"\",\"\",IF('1. ENSINO'!I63<8,\"SUA CARGA HORÁRIA SEMANAL DE MINISTRAÇÃO DE AULAS É INFERIOR A 8,0!\",IF(F18<>T21,\"SUA CARGA HORÁRIA SEMANAL TOTAL PREVISTA DIFERE DO SEU REGIME DE TRABALHO!\",\"\")))","v":""},null,null,null,null,null,null,null,null,null,null,null,null,null,null,null,null,null,"Viçosa / AL"]
[null,"Local e data: ",null,null,null,{"$f":"IF(C20=\"\",\"\",TODAY())","v":""}]
[null,"Assinatura do docente:","_____________________________________________",null,null,null,null,null,null,null,null,null,null,null,null,null,null,null,null,{"$f":"IF(Identificação!J32=\"20 h\",20,IF(Identificação!J32=\"40 h\",40,IF(Identificação!J32=\"DE\",40,\"\")))","v":""}]
[]
[]
[null,"Data da aprovação do Plano de Atividades Acadêmicas: "]
[null,"Assinatura do(a) Presidente do Conselho da UA/Campus:"]
[null,null,"_______________________________________"]
[]
[null,"INSTRUÇÕES PARA SALVAR OS PLANOS DE ATIVIDADES ACADÊMICAS"]
[null,"1. Verifique, inicialmente, se o PAA está devidamente preenchido, sem qualquer mensagem de ERRO;"]
[null,"2. Para salvar o arquivo (pasta Excel), clique no botão\"Salvar Arquivo EXCEL\", disponível logo abaixo dessas instruções. O arquivo será salvo no mesmo local em que foi salvo o \"modelo de formulário\", com o seguinte nome: \"PAA-ano.xlsm\", onde ano é o ano inicial do PAA. Tanto o nome como o local podem ser alterados posteriormente pelo docente;"]
[null,"3. Para criar o arquivo  no formato PDF correspondente ao Plano a ser enviado à Secretaria da Unidade/Campus, clique no botão \"Salvar PAA\", disponível abaixo dessas instruções. O arquivo será salvo no mesmo local em que foi salvo o \"modelo de formulário\", com o seguinte nome: \"PAA-ano.PDF\". Tanto o nome como o local podem ser posteriormente alterados pelo docente;"]
[null,"4. Para preencher e salvar um novo plano, clique no botão \"Criar novo Plano\". Quase todos os campos de todas as planilhas serão limpos e você poderá iniciar o preenchimento de um novo PAA com alguns dados já preenchidos."]
[null,"5. Após criar o Plano no formato de arquivo PDF, este deve ser assinado eletronicamente pelo docente utilizando sua conta GOV.BR. Só precisa assinar a última folha do arquivo, que contém o RESUMO das Atividades previstas.  "]
[null,"6. Após aprovação do Plano pelo Conselho da Unidade/Campus, a Direção deve também assinar eletronicamente na última folha do arquivo e encaminhar o processo para a Secretaria que deverá arquivá-lo."]